bitfinex/quotes_BTCUSD_20250526
["timestamp","ask_amount","ask_price","bid_price","bid_amount"]
[1748230142118,0.68883717,109540.0,109530.0,0.07303402]
[1748230142294,0.67970826,109540.0,109530.0,0.07303402]
[1748230142842,0.09098823,109530.0,109520.0,0.05477523]
[1748230143018,1.15803063,109530.0,109520.0,0.07303648]
[1748230143224,1.30387063,109530.0,109520.0,0.07303648]
[1748230143424,0.80599259,109530.0,109520.0,0.09129705]
[1748230143990,1.31300038,109530.0,109520.0,0.08216689]
[1748230144144,1.32213029,109530.0,109520.0,0.10042747]
[1748230144357,1.4955995,109530.0,109520.0,0.08216689]
[1748230144563,1.4985995,109530.0,109520.0,0.09129722]
[1748230144747,1.30687122,109530.0,109520.0,0.10042738]
[1748230145353,1.29774147,109530.0,109520.0,0.10042738]
[1748230145584,1.30687122,109530.0,109520.0,0.10042738]
[1748230145809,0.79986327,109530.0,109520.0,0.10042738]
[1748230146023,0.81812218,109530.0,109520.0,0.10042738]
[1748230146244,0.8181221,109530.0,109520.0,0.10042738]
[1748230146444,0.6722821,109530.0,109520.0,0.10042738]
[1748230146688,0.82725176,109530.0,109520.0,0.10042738]
[1748230147667,0.82725168,109530.0,109520.0,0.10042738]
[1748230149844,1.31600014,109530.0,109520.0,0.10042738]
[1748230150523,1.32512989,109530.0,109520.0,0.10042738]
[1748230151114,1.4211398,109530.0,109520.0,0.10042738]
[1748230151399,1.59460942,109530.0,109520.0,0.08216689]
[1748230151606,1.42114096,109530.0,109520.0,0.09129722]
[1748230151745,1.32513096,109530.0,109520.0,0.10042688]
[1748230152177,1.31600105,109530.0,109520.0,0.10042688]
[1748230153584,1.49859942,109530.0,109520.0,0.07303648]
[1748230153795,1.49859983,109530.0,109520.0,0.08216681]
[1748230154263,1.48947025,109530.0,109520.0,0.08216681]
[1748230154887,0.07363025,109520.0,109510.0,0.06390126]
[1748230155060,1.15893397,109520.0,109510.0,0.09129509]
[1748230155408,1.35067951,109520.0,109510.0,0.07303301]
[1748230155609,1.35067951,109520.0,109510.0,0.08216417]
[1748230155856,1.35067951,109520.0,109510.0,0.09129525]
[1748230155857,1.35981026,109520.0,109510.0,0.09129525]
[1748230156056,1.36081026,109520.0,109510.0,0.09129525]
[1748230156432,1.45033177,109520.0,109510.0,0.09329525]
[1748230156855,1.34254951,109520.0,109510.0,0.07503309]
[1748230157165,1.33241893,109520.0,109510.0,0.07503309]
[1748230157332,1.26419837,109520.0,109490.0,0.2011072]
[1748230157536,0.55184846,109500.0,109490.0,0.27416305]
[1748230157699,0.64139402,109500.0,109490.0,0.27416305]
[1748230158655,0.61069402,109500.0,109490.0,0.27416305]
[1748230158800,0.57829402,109500.0,109490.0,0.27416305]
[1748230159036,0.57829402,109500.0,109490.0,0.30436305]
[1748230159642,0.58229402,109500.0,109490.0,0.25613585]
[1748230160262,0.57629402,109500.0,109490.0,0.25613585]
[1748230160982,0.57629402,109500.0,109490.0,0.22593585]
[1748230161313,0.09354556,109500.0,109490.0,0.22593585]
[1748230161513,0.58229402,109500.0,109490.0,0.22593585]
[1748230162550,0.09354556,109500.0,109490.0,0.22593585]
[1748230162741,0.58229402,109500.0,109490.0,0.28963585]
[1748230163066,0.58229402,109500.0,109490.0,0.25723585]
[1748230163429,0.58229402,109500.0,109490.0,0.22593585]
[1748230164426,0.58229402,109500.0,109490.0,0.25673585]
[1748230165372,0.58229402,109500.0,109490.0,0.28743585]
[1748230166427,0.59142568,109500.0,109490.0,0.07305585]
[1748230166632,0.61439402,109500.0,109490.0,0.07305585]
[1748230167657,0.58229402,109500.0,109490.0,0.07305585]
[1748230173223,0.61479402,109500.0,109490.0,0.07305585]
[1748230173427,0.64479402,109500.0,109490.0,0.07305585]
[1748230173747,0.66305751,109500.0,109490.0,0.07305585]
[1748230173980,0.7003186,109500.0,109490.0,0.07305585]
[1748230174526,0.68132176,109500.0,109490.0,0.07305585]
[1748230175275,0.87310258,109500.0,109490.0,0.08218918]
[1748230175448,0.87310258,109500.0,109490.0,0.07305635]
[1748230175449,0.86397092,109500.0,109490.0,0.07305635]
[1748230175941,0.85483909,109500.0,109490.0,0.06392343]
[1748230176631,0.85483909,109500.0,109490.0,0.07305651]
[1748230176974,0.9443606,109500.0,109490.0,0.07305651]
[1748230177631,0.9352286,109500.0,109490.0,0.07305651]
[1748230178138,0.9352286,109500.0,109490.0,0.08218951]
[1748230178335,0.84570709,109500.0,109490.0,0.08218951]
[1748230178640,0.84570709,109500.0,109490.0,0.09132234]
[1748230179766,0.09354556,109500.0,109490.0,0.09132234]
[1748230179937,0.72817402,109500.0,109490.0,0.16305501]
[1748230180257,0.58229402,109500.0,109490.0,0.16305501]
[1748230182429,0.72817402,109500.0,109490.0,0.16305501]
[1748230182823,0.09354556,109500.0,109490.0,0.16305501]
[1748230182998,0.58229402,109500.0,109490.0,0.16305501]
[1748230183351,0.58229402,109500.0,109490.0,0.10045501]
[1748230184555,0.72817402,109500.0,109490.0,0.10045501]
[1748230187163,0.72817402,109500.0,109490.0,0.13185501]
[1748230189895,0.58229402,109500.0,109490.0,0.13185501]
[1748230190099,0.23942556,109500.0,109490.0,0.13185501]
[1748230190282,0.63862846,109500.0,109490.0,0.16465501]
[1748230190822,0.49274846,109500.0,109490.0,0.50465501]
[1748230191088,0.004,109500.0,109490.0,0.50465501]
[1748230196684,0.49274846,109500.0,109490.0,0.50465501]
[1748230196849,0.49274846,109500.0,109490.0,0.47185501]
[1748230197943,0.49274846,109500.0,109490.0,0.44045501]
[1748230199234,0.004,109500.0,109490.0,0.50365501]
[1748230202103,0.004,109500.0,109490.0,0.64953501]
[1748230202500,0.004,109500.0,109490.0,0.67690301]
[1748230202750,0.63462846,109520.0,109510.0,0.40392009]
[1748230202971,0.72417402,109520.0,109510.0,0.40392009]
[1748230203199,0.00014909,109520.0,109510.0,0.40392009]
[1748230203417,0.00014909,109520.0,109510.0,0.61940009]
[1748230204089,0.00514909,109520.0,109510.0,0.61940009]
[1748230205034,0.00614909,109520.0,109510.0,0.61940009]
[1748230205917,0.00114909,109520.0,109510.0,0.61940009]
[1748230206542,0.00514909,109520.0,109510.0,0.61940009]
[1748230208838,0.00514909,109520.0,109510.0,0.46672009]
[1748230209065,1.16078256,109520.0,109510.0,0.05478909]
[1748230209292,0.07033116,109510.0,109500.0,0.09287304]
[1748230209513,0.64862493,109510.0,109500.0,0.10200487]
[1748230209732,0.64862485,109510.0,109500.0,0.10200487]
[1748230209949,0.65775593,109510.0,109500.0,0.10200487]
[1748230210144,0.66688709,109510.0,109500.0,0.10200487]
[1748230210347,0.66888709,109510.0,109500.0,0.10200487]
[1748230210493,0.67801834,109510.0,109490.0,0.12902501]
[1748230210733,0.57829402,109500.0,109490.0,0.1472906]
[1748230210945,0.64189402,109500.0,109490.0,0.18381744]
[1748230211718,0.64189402,109500.0,109490.0,0.18581744]
[1748230212951,0.64189402,109500.0,109490.0,0.05579243]
[1748230213387,0.64189402,109500.0,109490.0,0.05779243]
[1748230214005,0.64189402,109500.0,109490.0,0.05679243]
[1748230214247,0.64189402,109500.0,109490.0,0.05479243]
[1748230216234,0.64489402,109500.0,109490.0,0.05479243]
[1748230219761,0.98978667,109500.0,109490.0,0.04566609]
[1748230219980,0.0708325,109490.0,109480.0,0.57488069]
[1748230220183,0.65825927,109490.0,109480.0,0.57488069]
[1748230220425,0.66739219,109490.0,109480.0,0.57488069]
[1748230220916,0.65825927,109490.0,109480.0,0.57488069]
[1748230221163,0.65825919,109490.0,109480.0,0.57488069]
[1748230221345,0.66739202,109490.0,109480.0,0.57488069]
[1748230221557,0.67652502,109490.0,109480.0,0.42220069]
[1748230221762,0.66839202,109490.0,109480.0,0.08220069]
[1748230222103,0.67752502,109490.0,109480.0,0.08220069]
[1748230222321,0.01826709,109480.0,109470.0,0.07304684]
[1748230222536,0.64139402,109480.0,109470.0,0.41304684]
[1748230222739,0.73330735,109480.0,109470.0,0.41304684]
[1748230223143,0.72317402,109480.0,109470.0,0.41304684]
[1748230223348,0.73230744,109480.0,109470.0,0.41304684]
[1748230223571,0.73230735,109480.0,109470.0,0.41354412]
[1748230223775,0.73230735,109480.0,109470.0,0.41554412]
[1748230224885,0.82230884,109480.0,109470.0,0.41554462]
[1748230225115,0.82230868,109480.0,109470.0,0.42467895]
[1748230225374,0.81317476,109480.0,109470.0,0.42467895]
[1748230225588,0.8131746,109480.0,109470.0,0.42467895]
[1748230226034,0.82230852,109480.0,109470.0,0.42467895]
[1748230226351,0.8131746,109480.0,109470.0,0.42467895]
[1748230226546,0.82330843,109480.0,109470.0,0.42467895]
[1748230226851,0.82330843,109480.0,109470.0,0.42267895]
[1748230227360,0.8141746,109480.0,109470.0,0.42267895]
[1748230227787,0.82330843,109480.0,109470.0,0.42267895]
[1748230228312,0.83244235,109480.0,109470.0,0.08267895]
[1748230228575,0.82330843,109480.0,109470.0,0.08267895]
[1748230228795,1.52630847,109480.0,109470.0,0.00049728]
[1748230229179,0.0626,109460.0,109450.0,0.23487376]
[1748230229387,0.78681402,109460.0,109450.0,0.5749235]
[1748230229804,0.08954556,109460.0,109450.0,0.5749235]
[1748230230058,0.08954556,109460.0,109450.0,0.6362235]
[1748230230256,0.48874846,109470.0,109460.0,0.40394928]
[1748230230471,0.72421402,109470.0,109460.0,0.40394928]
[1748230230901,0.57829402,109470.0,109460.0,0.40394928]
[1748230231110,0.72421402,109470.0,109460.0,0.40394928]
[1748230231406,0.72721402,109470.0,109460.0,0.40394928]
[1748230232177,0.79261402,109470.0,109460.0,0.40394928]
[1748230232780,0.79561402,109470.0,109460.0,0.40394928]
[1748230234160,0.80474819,109470.0,109460.0,0.40394928]
[1748230234361,0.30686556,109470.0,109460.0,0.40394928]
[1748230234584,0.79561402,109470.0,109460.0,0.40394928]
[1748230235495,0.15192,109470.0,109460.0,0.46654928]
[1748230236144,0.14892,109470.0,109460.0,0.46654928]
[1748230236354,0.14892,109470.0,109460.0,0.43644928]
[1748230236511,0.14992,109470.0,109460.0,0.40394928]
[1748230236711,0.63866846,109470.0,109460.0,0.40394928]
[1748230237317,0.63566846,109470.0,109460.0,0.40394928]
[1748230237592,0.63766846,109470.0,109460.0,0.40394928]
[1748230240795,0.78981402,109470.0,109460.0,0.40394928]
[1748230243236,0.80808293,109470.0,109460.0,0.40394928]
[1748230243438,0.15514556,109470.0,109460.0,0.40394928]
[1748230243648,0.75831402,109470.0,109460.0,0.40394928]
[1748230246966,0.72721402,109470.0,109460.0,0.40394928]
[1748230247288,0.79121402,109470.0,109460.0,0.40394928]
[1748230248826,0.76011402,109470.0,109460.0,0.40394928]
[1748230249149,0.72721402,109470.0,109460.0,0.40394928]
[1748230249876,0.23846556,109470.0,109460.0,0.40394928]
[1748230252115,0.30176556,109470.0,109460.0,0.40394928]
[1748230253507,0.79051402,109470.0,109460.0,0.40394928]
[1748230253711,0.30176556,109470.0,109460.0,0.40394928]
[1748230254008,0.79051402,109470.0,109460.0,0.40394928]
[1748230254440,0.64459402,109470.0,109460.0,0.40394928]
[1748230254645,0.79051402,109470.0,109460.0,0.40394928]
[1748230254856,0.81030274,109470.0,109460.0,0.40394928]
[1748230257459,0.79051402,109470.0,109460.0,0.40394928]
[1748230258544,0.75741402,109470.0,109460.0,0.40394928]
[1748230258743,0.78761402,109470.0,109460.0,0.40394928]
[1748230258962,0.80700883,109470.0,109460.0,0.40394928]
[1748230259191,0.58129402,109470.0,109460.0,0.40394928]
[1748230259395,0.23846556,109470.0,109460.0,0.43434928]
[1748230259723,0.09254556,109470.0,109460.0,0.43434928]
[1748230259925,0.23846556,109470.0,109460.0,0.43434928]
[1748230260457,0.14892,109470.0,109460.0,0.46434928]
[1748230264735,0.14892,109470.0,109460.0,0.52387728]
[1748230267186,0.14892,109470.0,109460.0,0.49387728]
[1748230267581,0.14892,109470.0,109460.0,0.46347728]
[1748230267773,0.18192,109470.0,109460.0,0.46347728]
[1748230268222,0.67066846,109470.0,109460.0,0.46347728]
[1748230268356,0.63766846,109470.0,109460.0,0.46347728]
[1748230268555,0.63766846,109470.0,109460.0,0.49567728]
[1748230269003,0.14892,109470.0,109460.0,0.49567728]
[1748230270123,0.14892,109470.0,109460.0,0.46347728]
[1748230271887,0.23846556,109470.0,109460.0,0.46347728]
[1748230272504,0.23846556,109470.0,109460.0,0.49667728]
[1748230277706,0.09254556,109470.0,109460.0,0.49667728]
[1748230277946,0.23846556,109470.0,109460.0,0.49667728]
[1748230279875,0.23846556,109470.0,109460.0,0.30672589]
[1748230280766,0.23846556,109470.0,109460.0,0.059528]
[1748230281720,0.23846556,109470.0,109460.0,0.09607102]
[1748230282044,0.23846556,109470.0,109460.0,0.12347728]
[1748230284605,0.27006556,109470.0,109460.0,0.12347728]
[1748230284801,0.32063431,109470.0,109460.0,0.12347728]
[1748230285006,0.82765227,109470.0,109460.0,0.11434211]
[1748230285202,1.01035139,109470.0,109460.0,0.12347762]
[1748230285730,1.00121689,109470.0,109460.0,0.1326132]
[1748230285924,1.00121689,109470.0,109460.0,0.14174854]
[1748230286364,1.00121689,109470.0,109460.0,0.14174812]
[1748230286692,1.0907384,109470.0,109460.0,0.14174812]
[1748230286887,1.00121689,109470.0,109460.0,0.13261287]
[1748230287125,1.00121689,109470.0,109460.0,0.12347736]
[1748230287287,0.81851844,109470.0,109460.0,0.13261253]
[1748230288355,1.00121689,109470.0,109460.0,0.11434211]
[1748230288772,1.01575774,109470.0,109460.0,0.059528]
[1748230288963,1.01575774,109470.0,109460.0,0.10520669]
[1748230288964,1.07274931,109470.0,109460.0,0.10520669]
[1748230289206,0.99748824,109470.0,109460.0,0.059528]
[1748230289407,0.99748824,109470.0,109460.0,0.06866375]
[1748230289610,0.99748824,109470.0,109460.0,0.11434244]
[1748230289811,0.99748824,109470.0,109460.0,0.12347803]
[1748230290011,0.99748824,109470.0,109460.0,0.11434244]
[1748230290594,0.99748824,109470.0,109460.0,0.12347786]
[1748230290797,0.82392446,109470.0,109460.0,0.12347786]
[1748230291002,1.00662291,109470.0,109460.0,0.12347786]
[1748230291627,1.00662291,109470.0,109460.0,0.1326132]
[1748230291834,0.66886929,109470.0,109460.0,0.14174845]
[1748230292034,0.6725971,109470.0,109460.0,0.14174787]
[1748230292241,0.8185571,109470.0,109460.0,0.14174787]
[1748230293939,0.82769177,109470.0,109460.0,0.14174787]
[1748230295853,0.80942252,109470.0,109460.0,0.14174787]
[1748230296063,0.82769169,109470.0,109460.0,0.14174787]
[1748230296267,0.8276916,109470.0,109460.0,0.14174787]
[1748230297593,0.8256916,109470.0,109460.0,0.14174787]
[1748230297996,0.8286916,109470.0,109460.0,0.14174787]
[1748230298700,0.8276916,109470.0,109460.0,0.14174787]
[1748230299101,0.8296916,109470.0,109460.0,0.14174787]
[1748230299296,0.83882627,109470.0,109460.0,0.14174787]
[1748230299497,0.83882685,109470.0,109460.0,0.1326127]
[1748230299637,1.09277823,109470.0,109460.0,0.11434211]
[1748230300418,1.09277823,109470.0,109460.0,0.12347745]
[1748230300619,1.00325672,109470.0,109460.0,0.11434211]
[1748230301580,0.82055827,109470.0,109460.0,0.12347745]
[1748230301796,0.82969319,109470.0,109460.0,0.13261262]
[1748230301994,0.82969319,109470.0,109460.0,0.12347745]
[1748230302220,0.68373319,109470.0,109460.0,0.12347745]
[1748230302551,1.01239164,109470.0,109460.0,0.12347745]
[1748230302771,1.01239164,109470.0,109460.0,0.11434211]
[1748230303109,1.01239164,109470.0,109460.0,0.12347745]
[1748230303946,0.82969319,109470.0,109460.0,0.12347745]
[1748230304107,0.82969319,109470.0,109460.0,0.1326127]
[1748230307069,1.01239164,109470.0,109460.0,0.1326127]
[1748230308263,0.67459769,109470.0,109460.0,0.14174787]
[1748230308486,0.82055769,109470.0,109460.0,0.14174787]
[1748230308860,0.83882669,109470.0,109460.0,0.14174787]
[1748230311057,0.82969186,109470.0,109460.0,0.14174787]
[1748230311256,0.79739186,109470.0,109460.0,0.14174787]
[1748230312374,0.82769186,109470.0,109460.0,0.14174787]
[1748230312577,1.01039031,109470.0,109460.0,0.12347745]
[1748230312779,1.01039031,109470.0,109460.0,0.1326127]
[1748230314668,1.01952514,109470.0,109460.0,0.1326127]
[1748230315581,1.01952589,109470.0,109460.0,0.1326127]
[1748230317532,1.01952589,109470.0,109460.0,0.10520669]
[1748230317733,1.01039147,109470.0,109460.0,0.11434228]
[1748230317972,0.99212222,109470.0,109460.0,0.059528]
[1748230318185,0.99212222,109470.0,109460.0,0.11434236]
[1748230320179,0.99752824,109470.0,109460.0,0.09607102]
[1748230320388,0.99752824,109470.0,109460.0,0.11434227]
[1748230320602,0.82396429,109470.0,109460.0,0.13261286]
[1748230320768,1.02493208,109470.0,109460.0,0.12347769]
[1748230320964,1.02493208,109470.0,109460.0,0.13261303]
[1748230321982,0.87652205,109460.0,109450.0,0.06397141]
[1748230322200,1.44568099,109460.0,109450.0,0.1386075]
[1748230322381,1.45481616,109460.0,109450.0,0.1386075]
[1748230323203,1.45681616,109460.0,109450.0,0.1386075]
[1748230323417,1.45681607,109460.0,109450.0,0.1386075]
[1748230325731,1.45681599,109460.0,109450.0,0.1386075]
[1748230326762,1.46595107,109460.0,109450.0,0.0731075]
[1748230326994,1.46595107,109460.0,109450.0,0.1056075]
[1748230327230,1.44768099,109460.0,109450.0,0.1056075]
[1748230327413,1.62009481,109460.0,109450.0,0.1056075]
[1748230329507,1.62923006,109460.0,109450.0,0.1056075]
[1748230329718,1.62009481,109460.0,109450.0,0.1056075]
[1748230330003,1.68140349,109460.0,109450.0,0.1056075]
[1748230332483,1.65494967,109460.0,109450.0,0.1056075]
[1748230332692,1.65494967,109460.0,109450.0,0.1384075]
[1748230333217,1.66408475,109460.0,109450.0,0.1056075]
[1748230333483,1.71375534,109460.0,109450.0,0.073108]
[1748230333688,1.93770666,109460.0,109450.0,0.0731085]
[1748230333937,1.93770666,109460.0,109450.0,0.08224475]
[1748230334136,1.93770666,109460.0,109450.0,0.10051701]
[1748230334316,1.75499152,109460.0,109450.0,0.10051642]
[1748230334498,1.77222526,109460.0,109450.0,0.10051642]
[1748230336073,1.71116997,109460.0,109440.0,0.34]
[1748230336250,0.57854741,109450.0,109440.0,0.35827393]
[1748230336662,0.5968195,109450.0,109440.0,0.01827393]
[1748230336863,0.60595592,109450.0,109440.0,0.01827393]
[1748230337072,0.60595584,109450.0,109440.0,0.01827393]
[1748230337276,0.01827393,109440.0,109420.0,0.09993456]
[1748230337488,0.57854741,109430.0,109420.0,0.09998428]
[1748230338323,0.59450422,109430.0,109420.0,0.43998428]
[1748230338903,0.59450422,109430.0,109420.0,0.44398428]
[1748230339107,0.60364181,109430.0,109420.0,0.38058428]
[1748230339310,0.61765084,109430.0,109420.0,0.05886155]
[1748230339509,0.60851325,109430.0,109420.0,0.05886155]
[1748230340453,0.60851325,109430.0,109420.0,0.06186155]
[1748230340624,0.60851325,109430.0,109420.0,0.09446155]
[1748230341109,0.61765076,109430.0,109420.0,0.09446155]
[1748230341309,0.60851325,109430.0,109420.0,0.09446155]
[1748230342279,0.1195114,109430.0,109420.0,0.09446155]
[1748230342485,0.10255459,109430.0,109420.0,0.09446155]
[1748230342872,0.11951132,109430.0,109420.0,0.09446155]
[1748230344696,0.11951132,109430.0,109420.0,0.09438383]
[1748230350026,0.08854556,109430.0,109420.0,0.12588383]
[1748230350231,1.444895,109460.0,109450.0,0.06395511]
[1748230350437,1.69498141,109460.0,109450.0,0.06395511]
[1748230350638,2.01722808,109460.0,109450.0,0.05481911]
[1748230350761,0.27664537,109450.0,109440.0,0.04568411]
[1748230350970,0.68159719,109450.0,109440.0,0.05482128]
[1748230351176,0.69073378,109450.0,109440.0,0.06395828]
[1748230351362,0.69073319,109450.0,109440.0,0.06395828]
[1748230351563,0.85519294,109450.0,109440.0,0.06395828]
[1748230353117,0.86905014,109450.0,109440.0,0.06395828]
[1748230353418,0.86905014,109450.0,109440.0,0.0730952]
[1748230354709,0.86905014,109450.0,109440.0,0.06395828]
[1748230354834,0.00913692,109440.0,109430.0,0.05482283]
[1748230355041,0.74282142,109440.0,109430.0,0.05482283]
[1748230355771,0.74282133,109440.0,109430.0,0.05482283]
[1748230355954,0.74282133,109440.0,109430.0,0.05582283]
[1748230356155,0.73368408,109440.0,109430.0,0.05582283]
[1748230356400,0.74282108,109440.0,109430.0,0.08962283]
[1748230357006,0.25381923,109440.0,109430.0,0.08962283]
[1748230357131,0.25381907,109440.0,109430.0,0.08962283]
[1748230357337,0.26295607,109440.0,109430.0,0.08962283]
[1748230358108,0.26295599,109440.0,109430.0,0.03962283]
[1748230358313,0.25381907,109440.0,109430.0,0.0853072]
[1748230358547,0.25381915,109440.0,109430.0,0.0853072]
[1748230358678,0.26295607,109440.0,109430.0,0.0853072]
[1748230359704,0.27209324,109440.0,109430.0,0.0535072]
[1748230360308,0.26295607,109440.0,109430.0,0.0535072]
[1748230361117,0.27209324,109440.0,109430.0,0.0535072]
[1748230361635,0.76109509,109440.0,109430.0,0.0535072]
[1748230361833,0.76109501,109440.0,109430.0,0.0535072]
[1748230363111,0.77023218,109440.0,109430.0,0.0535072]
[1748230363314,0.77023226,109440.0,109430.0,0.06264537]
[1748230363529,0.83463226,109440.0,109430.0,0.06264537]
[1748230363738,0.82549501,109440.0,109430.0,0.06264537]
[1748230364628,0.83463226,109440.0,109430.0,0.06264537]
[1748230364842,0.83463218,109440.0,109430.0,0.06264537]
[1748230365466,0.80333218,109440.0,109430.0,0.06264537]
[1748230365783,0.80333276,109440.0,109430.0,0.06264537]
[1748230367517,1.09976638,109440.0,109430.0,0.003]
[1748230367723,1.09603297,109440.0,109430.0,0.01213826]
[1748230367930,1.09603297,109440.0,109430.0,0.05782931]
[1748230368141,1.00651146,109440.0,109430.0,0.05782931]
[1748230369300,0.23554556,109440.0,109430.0,0.1410049]
[1748230370360,0.23554556,109440.0,109420.0,0.26737832]
[1748230370566,0.23554556,109440.0,109420.0,0.00913842]
[1748230371616,0.23554556,109440.0,109420.0,0.01513842]
[1748230372994,0.23554556,109440.0,109430.0,0.03655211]
[1748230373591,0.08954556,109440.0,109430.0,0.03655211]
[1748230373795,0.23554556,109440.0,109430.0,0.03655211]
[1748230374143,0.23554556,109440.0,109430.0,0.04569012]
[1748230374341,0.08954556,109440.0,109430.0,0.04569012]
[1748230374519,0.23554556,109440.0,109430.0,0.04669012]
[1748230374699,0.23554556,109440.0,109430.0,0.04769012]
[1748230375134,0.23554556,109440.0,109430.0,0.05682838]
[1748230378180,0.08954556,109440.0,109430.0,0.05682838]
[1748230378538,0.23554556,109440.0,109430.0,0.05682838]
[1748230379227,0.24468223,109440.0,109430.0,0.05682838]
[1748230380507,0.73368408,109440.0,109430.0,0.05682838]
[1748230380756,0.81655801,109440.0,109430.0,0.05682838]
[1748230381689,0.80742092,109440.0,109430.0,0.05682838]
[1748230381869,0.81655801,109440.0,109430.0,0.05682838]
[1748230383385,0.82569526,109440.0,109430.0,0.05682838]
[1748230383573,0.81655801,109440.0,109430.0,0.05682838]
[1748230386697,0.82569518,109440.0,109430.0,0.05682838]
[1748230387531,1.01384847,109440.0,109430.0,0.04769071]
[1748230387745,0.83109994,109440.0,109430.0,0.05682847]
[1748230388532,0.83109994,109440.0,109430.0,0.06596614]
[1748230388712,0.84023711,109440.0,109430.0,0.06596614]
[1748230389655,0.84937453,109440.0,109430.0,0.06596614]
[1748230390766,0.84023711,109440.0,109430.0,0.06596614]
[1748230393019,0.82196252,109440.0,109430.0,0.06596614]
[1748230393220,0.83109977,109440.0,109430.0,0.06596614]
[1748230393367,0.82196252,109440.0,109430.0,0.06596614]
[1748230393566,0.83109977,109440.0,109430.0,0.06596614]
[1748230394074,1.43354033,109440.0,109430.0,0.06596614]
[1748230394546,1.44267758,109440.0,109430.0,0.06596614]
[1748230394743,1.43354033,109440.0,109430.0,0.06596614]
[1748230394976,1.43354,109440.0,109430.0,0.06596614]
[1748230395197,1.25472522,109440.0,109430.0,0.06596614]
[1748230395403,0.78583539,109440.0,109430.0,0.06596614]
[1748230396356,0.81803539,109440.0,109430.0,0.06596614]
[1748230396489,0.78583539,109440.0,109430.0,0.06596614]
[1748230397487,0.63983539,109440.0,109430.0,0.09716614]
[1748230397739,0.78583539,109440.0,109430.0,0.09716614]
[1748230397958,0.78583539,109440.0,109430.0,0.06596614]
[1748230398161,0.23554556,109440.0,109430.0,0.06596614]
[1748230399622,0.24468223,109440.0,109430.0,0.06596614]
[1748230399818,0.23554556,109440.0,109430.0,0.06596614]
[1748230400179,0.26574556,109440.0,109430.0,0.06596614]
[1748230400513,0.29584556,109440.0,109430.0,0.06596614]
[1748230401310,0.26574556,109440.0,109430.0,0.06596614]
[1748230403339,0.23554556,109440.0,109430.0,0.06596614]
[1748230405281,0.23554556,109440.0,109430.0,0.09846614]
[1748230407022,0.23554556,109440.0,109430.0,0.06596614]
[1748230407677,0.23554556,109440.0,109430.0,0.09846614]
[1748230408288,0.08954556,109440.0,109430.0,0.09846614]
[1748230408499,0.23554556,109440.0,109430.0,0.06596614]
[1748230411901,0.08954556,109440.0,109430.0,0.06596614]
[1748230412136,0.23554556,109440.0,109430.0,0.06596614]
[1748230412312,0.23554556,109440.0,109430.0,0.06571302]
[1748230416493,0.86738697,109460.0,109430.0,0.0861234]
[1748230416700,0.86738697,109460.0,109450.0,0.52490473]
[1748230416918,0.86738697,109460.0,109450.0,0.61445029]
[1748230417129,0.86738697,109460.0,109450.0,0.62899114]
[1748230417130,0.83306924,109460.0,109450.0,0.62899114]
[1748230417346,0.03212957,109470.0,109450.0,0.62899114]
[1748230417347,0.00612957,109470.0,109460.0,0.37628918]
[1748230417558,0.01092529,109490.0,109480.0,0.04566942]
[1748230417762,0.04192198,109500.0,109490.0,0.38566526]
[1748230418202,0.03592198,109500.0,109490.0,0.38566526]
[1748230418423,0.03592198,109500.0,109490.0,0.39430854]
[1748230418654,0.03641932,109500.0,109490.0,0.39298332]
[1748230419139,0.03641932,109500.0,109490.0,0.40883414]
[1748230420222,0.03641932,109500.0,109490.0,0.40860566]
[1748230420440,0.03741932,109500.0,109490.0,0.4229637]
[1748230420865,0.03941932,109500.0,109490.0,0.4229637]
[1748230421258,0.00349734,109500.0,109490.0,0.4229637]
[1748230422032,0.00349734,109500.0,109490.0,0.41935332]
[1748230423999,0.00349734,109500.0,109490.0,0.50889888]
[1748230424951,0.00349734,109500.0,109490.0,0.52224917]
[1748230427598,0.00349734,109500.0,109490.0,0.50889888]
[1748230427810,0.06869734,109500.0,109490.0,0.7215637]
[1748230428774,0.06869734,109500.0,109490.0,0.70720566]
[1748230428974,0.06869734,109500.0,109490.0,0.40860566]
[1748230429178,0.06869734,109500.0,109490.0,0.36720566]
[1748230429441,0.06869734,109500.0,109490.0,0.70720566]
[1748230430659,0.06869734,109500.0,109490.0,0.70207836]
[1748230431002,0.00349734,109500.0,109490.0,0.80616477]
[1748230431410,0.00349734,109500.0,109490.0,0.83352677]
[1748230432006,0.00049734,109500.0,109490.0,0.83352677]
[1748230432208,0.00049734,109500.0,109490.0,0.85161418]
[1748230432461,0.55007059,109550.0,109540.0,0.03651542]
[1748230432604,0.15069476,109550.0,109540.0,0.38564442]
[1748230433934,0.15069476,109550.0,109540.0,0.3942877]
[1748230434669,0.15669476,109550.0,109540.0,0.3942877]
[1748230435425,0.16269476,109550.0,109540.0,0.3942877]
[1748230436718,0.16269476,109550.0,109540.0,0.39403458]
[1748230442536,0.16269476,109550.0,109540.0,0.40473881]
[1748230443732,0.0731492,109550.0,109540.0,0.40473881]
[1748230445428,0.0731492,109550.0,109540.0,0.42287793]
[1748230446247,0.0121492,109550.0,109540.0,0.56871793]
[1748230446687,0.0121492,109550.0,109540.0,0.55444563]
[1748230447431,0.0061492,109550.0,109540.0,0.55444563]
[1748230447687,0.0081492,109550.0,109540.0,0.55395973]
[1748230447853,0.37104088,109580.0,109570.0,0.04563192]
[1748230448049,0.46058644,109580.0,109570.0,0.04563192]
[1748230449082,0.46658644,109580.0,109570.0,0.04563192]
[1748230449270,0.46658644,109580.0,109570.0,0.40506506]
[1748230449465,0.48483685,109580.0,109570.0,0.39593906]
[1748230449642,0.69101833,109580.0,109570.0,0.02855955]
[1748230449841,0.68189325,109580.0,109570.0,0.01943314]
[1748230450043,0.67276792,109580.0,109570.0,0.02855972]
[1748230450317,0.67776792,109580.0,109570.0,0.01943314]
[1748230450906,0.74346792,109580.0,109570.0,0.01943314]
[1748230451312,0.73746792,109580.0,109570.0,0.01943314]
[1748230451689,0.73246792,109580.0,109570.0,0.01943314]
[1748230451892,0.74846792,109580.0,109570.0,0.01943314]
[1748230452106,0.37742704,109580.0,109570.0,0.01943314]
[1748230452305,0.26939906,109570.0,109560.0,0.03817144]
[1748230452501,0.99385521,109570.0,109560.0,0.02904444]
[1748230452724,0.99385521,109570.0,109560.0,0.04729921]
[1748230453064,0.99385521,109570.0,109560.0,0.01078986]
[1748230453213,0.99385521,109570.0,109560.0,0.01991719]
[1748230453414,0.99385521,109570.0,109560.0,0.04729927]
[1748230453618,0.99785521,109570.0,109560.0,0.02738216]
[1748230453817,0.99785521,109570.0,109560.0,0.03650941]
[1748230454023,0.99785521,109570.0,109560.0,0.04563657]
[1748230454806,0.99785521,109570.0,109560.0,0.03650941]
[1748230455022,0.99785521,109570.0,109560.0,0.04729927]
[1748230455845,0.99785521,109570.0,109560.0,0.05642643]
[1748230456854,0.99785521,109570.0,109560.0,0.03817202]
[1748230457052,0.98872871,109570.0,109560.0,0.01078986]
[1748230457195,1.07825022,109570.0,109560.0,0.01078986]
[1748230457575,0.07202708,109560.0,109550.0,0.04176998]
[1748230457785,0.65064323,109560.0,109550.0,0.04176998]
[1748230457954,0.65064323,109560.0,109550.0,0.0600234]
[1748230458187,0.6688973,109560.0,109550.0,0.04538176]